[Event "*** Titled Tuesday Blitz"]
[Site "Chess.com"]
[Date "2020.11.10"]
[Round "11"]
[White "lilleper1"]
[Black "GothamChess"]
[Result "0-1"]
[WhiteElo "2810"]
[BlackElo "2670"]
[TimeControl "180+1"]
[EndTime "12:13:04 PST"]
[Termination "GothamChess won by resignation"]

1. e4 {[%clk 0:03:00.9]} 1... c6 {[%clk 0:02:59.9]} 2. d4 {[%clk 0:02:59.3]}
2... d5 {[%clk 0:02:59.7]} 3. Nc3 {[%clk 0:02:59.9]} 3... a6 {[%clk 0:02:59.6]}
4. Nf3 {[%clk 0:02:57.8]} 4... Bg4 {[%clk 0:02:59.3]} 5. h3 {[%clk 0:02:54.6]}
5... Bxf3 {[%clk 0:02:56.6]} 6. Qxf3 {[%clk 0:02:55.5]} 6... e6 {[%clk
0:02:57.5]} 7. Bd3 {[%clk 0:02:53.7]} 7... Nf6 {[%clk 0:02:56.8]} 8. Be3 {[%clk
0:02:47.7]} 8... Be7 {[%clk 0:02:55.9]} 9. h4 {[%clk 0:02:39.5]} 9... h5 {[%clk
0:02:45.8]} 10. O-O-O {[%clk 0:02:31]} 10... Nbd7 {[%clk 0:02:23.8]} 11. Qg3
{[%clk 0:02:28.5]} 11... Ng4 {[%clk 0:02:18.3]} 12. Bf4 {[%clk 0:02:24.4]} 12...
g6 {[%clk 0:01:39.6]} 13. f3 {[%clk 0:02:19.2]} 13... Ngf6 {[%clk 0:01:34.9]}
14. e5 {[%clk 0:02:09.8]} 14... Nh7 {[%clk 0:01:35.3]} 15. Qh3 {[%clk 0:01:55]}
15... Nhf8 {[%clk 0:01:33.7]} 16. Kb1 {[%clk 0:01:38.2]} 16... c5 {[%clk
0:01:30.1]} 17. dxc5 {[%clk 0:01:38.2]} 17... Qa5 {[%clk 0:01:26.4]} 18. g4
{[%clk 0:01:19.2]} 18... Nxc5 {[%clk 0:01:15.2]} 19. Be2 {[%clk 0:01:16.1]}
19... Rc8 {[%clk 0:01:06.2]} 20. gxh5 {[%clk 0:01:13.8]} 20... Rxh5 {[%clk
0:01:05.5]} 21. Qg4 {[%clk 0:00:56.3]} 21... b5 {[%clk 0:00:56.1]} 22. Nxd5
{[%clk 0:00:53.9]} 22... Nfd7 {[%clk 0:00:40.3]} 23. Nxe7 {[%clk 0:00:43.1]}
23... Kxe7 {[%clk 0:00:38.8]} 24. Bg5+ {[%clk 0:00:43.6]} 24... Ke8 {[%clk
0:00:32.3]} 25. Qd4 {[%clk 0:00:40.9]} 25... Qc7 {[%clk 0:00:25.6]} 26. f4
{[%clk 0:00:37]} 26... Rh8 {[%clk 0:00:25]} 27. Rd2 {[%clk 0:00:36.8]} 27... Qc6
{[%clk 0:00:19.2]} 28. Rhd1 {[%clk 0:00:34.5]} 28... Rc7 {[%clk 0:00:12.4]} 29.
c3 {[%clk 0:00:28.4]} 29... Ne4 {[%clk 0:00:09.3]} 30. Rd3 {[%clk 0:00:25]}
30... Nxg5 {[%clk 0:00:06.4]} 31. hxg5 {[%clk 0:00:25]} 31... Kf8 {[%clk
0:00:02.4]} 32. Bf3 {[%clk 0:00:24]} 32... Qc5 {[%clk 0:00:01.8]} 33. Qe4 {[%clk
0:00:19.2]} 33... Kg7 {[%clk 0:00:02.2]} 34. Rxd7 {[%clk 0:00:17.8]} 34... Rxd7
{[%clk 0:00:03.1]} 35. Rxd7 {[%clk 0:00:18.2]} 35... b4 {[%clk 0:00:03.8]} 36.
Rd1 {[%clk 0:00:17.4]} 36... bxc3 {[%clk 0:00:03.6]} 37. Qc2 {[%clk 0:00:17.6]}
37... Rb8 {[%clk 0:00:03.2]} 38. b3 {[%clk 0:00:17.9]} 38... Qe3 {[%clk
0:00:02.4]} 39. Be4 {[%clk 0:00:16.6]} 39... Qxf4 {[%clk 0:00:02.3]} 40. Re1
{[%clk 0:00:15.6]} 40... Qxe5 {[%clk 0:00:02.4]} 41. Bd3 {[%clk 0:00:15.8]}
41... Qxe1+ {[%clk 0:00:02.3]} 42. Qc1 {[%clk 0:00:15.4]} 42... Qxc1+ {[%clk
0:00:02.4]} 0-1

[Event "*** Titled Tuesday Blitz"]
[Site "Chess.com"]
[Date "2020.11.10"]
[Round "11"]
[White "ehrenfeld"]
[Black "Chessdude1987"]
[Result "0-1"]
[WhiteElo "2451"]
[BlackElo "2305"]
[TimeControl "180+1"]
[EndTime "12:13:04 PST"]
[Termination "Chessdude1987 won on time"]

1. e4 {[%clk 0:03:00.9]} 1... e6 {[%clk 0:02:59.8]} 2. d4 {[%clk 0:02:59.9]}
2... d5 {[%clk 0:02:59.7]} 3. e5 {[%clk 0:03:00.3]} 3... c5 {[%clk 0:02:59.2]}
4. c3 {[%clk 0:03:00.7]} 4... Nc6 {[%clk 0:02:59.5]} 5. Nf3 {[%clk 0:03:00.8]}
5... Qb6 {[%clk 0:03:00.1]} 6. a3 {[%clk 0:03:00.1]} 6... f6 {[%clk 0:03:00.7]}
7. Bd3 {[%clk 0:02:47.1]} 7... fxe5 {[%clk 0:03:00.6]} 8. dxe5 {[%clk
0:02:39.6]} 8... c4 {[%clk 0:03:00.5]} 9. Bc2 {[%clk 0:02:39]} 9... Nh6 {[%clk
0:03:00.6]} 10. O-O {[%clk 0:02:33.5]} 10... Nf7 {[%clk 0:02:51.6]} 11. b4
{[%clk 0:02:30.3]} 11... cxb3 {[%clk 0:02:50.1]} 12. Bxb3 {[%clk 0:02:29.8]}
12... Nfxe5 {[%clk 0:02:24.9]} 13. Nxe5 {[%clk 0:02:27.8]} 13... Nxe5 {[%clk
0:02:24.8]} 14. Re1 {[%clk 0:02:25.2]} 14... Bd6 {[%clk 0:02:21.1]} 15. Bf4
{[%clk 0:02:15.7]} 15... O-O {[%clk 0:02:17.1]} 16. Bg3 {[%clk 0:02:02]} 16...
Nf7 {[%clk 0:02:12.4]} 17. Nd2 {[%clk 0:01:56.5]} 17... Bxg3 {[%clk 0:02:09.7]}
18. hxg3 {[%clk 0:01:55.9]} 18... Bd7 {[%clk 0:02:00.8]} 19. Rb1 {[%clk
0:01:54]} 19... Qc5 {[%clk 0:01:57]} 20. Re3 {[%clk 0:01:51.2]} 20... Qxa3
{[%clk 0:01:42.4]} 21. Bc2 {[%clk 0:01:49.9]} 21... b6 {[%clk 0:01:38.3]} 22.
Qh5 {[%clk 0:01:41.7]} 22... Nh6 {[%clk 0:01:26.8]} 23. Nf3 {[%clk 0:01:21]}
23... Be8 {[%clk 0:01:03.7]} 24. Qe5 {[%clk 0:01:13.1]} 24... Rf6 {[%clk
0:00:49.4]} 25. Qd4 {[%clk 0:01:05.2]} 25... Qc5 {[%clk 0:00:44.3]} 26. Qh4
{[%clk 0:01:03.6]} 26... Nf5 {[%clk 0:00:39.7]} 27. Bxf5 {[%clk 0:01:02.7]}
27... Rxf5 {[%clk 0:00:39.7]} 28. Rbe1 {[%clk 0:00:56.5]} 28... Bg6 {[%clk
0:00:31.8]} 29. Nd4 {[%clk 0:00:53.1]} 29... Rh5 {[%clk 0:00:30]} 30. Qg4 {[%clk
0:00:52.9]} 30... Re8 {[%clk 0:00:24.4]} 31. Rxe6 {[%clk 0:00:48.9]} 31... Rf8
{[%clk 0:00:22.6]} 32. Re7 {[%clk 0:00:42.7]} 32... Qxc3 {[%clk 0:00:22.1]} 33.
Qe6+ {[%clk 0:00:26.5]} 33... Bf7 {[%clk 0:00:21]} 34. Qg4 {[%clk 0:00:15.2]}
34... Rh6 {[%clk 0:00:19.2]} 35. Nf5 {[%clk 0:00:13.8]} 35... Rg6 {[%clk
0:00:18.7]} 36. Qf4 {[%clk 0:00:12.2]} 36... Qf6 {[%clk 0:00:18.2]} 37. g4
{[%clk 0:00:10.4]} 37... Rg5 {[%clk 0:00:17.1]} 38. f3 {[%clk 0:00:09.6]} 38...
g6 {[%clk 0:00:16.6]} 39. Nh6+ {[%clk 0:00:09]} 39... Kg7 {[%clk 0:00:16.9]} 40.
Rxf7+ {[%clk 0:00:07.2]} 40... Rxf7 {[%clk 0:00:16.8]} 41. Qxf6+ {[%clk
0:00:00.4]} 41... Rxf6 {[%clk 0:00:16.6]} 0-1

[Event "*** Titled Tuesday Blitz"]
[Site "Chess.com"]
[Date "2020.11.10"]
[Round "11"]
[White "dpopadic"]
[Black "geordie_derraugh"]
[Result "0-1"]
[WhiteElo "2354"]
[BlackElo "2474"]
[TimeControl "180+1"]
[EndTime "12:13:05 PST"]
[Termination "geordie_derraugh won on time"]

1. e4 {[%clk 0:03:00.9]} 1... c5 {[%clk 0:02:59.2]} 2. Nc3 {[%clk 0:03:00.8]}
2... e6 {[%clk 0:02:58.3]} 3. d3 {[%clk 0:03:00.1]} 3... Nc6 {[%clk 0:02:57.6]}
4. g4 {[%clk 0:03:00]} 4... d5 {[%clk 0:02:55.1]} 5. Bg2 {[%clk 0:02:59.9]} 5...
d4 {[%clk 0:02:50.6]} 6. Nce2 {[%clk 0:02:59.3]} 6... h5 {[%clk 0:02:48.5]} 7.
g5 {[%clk 0:02:58.2]} 7... h4 {[%clk 0:02:44.3]} 8. Nh3 {[%clk 0:02:57.5]} 8...
e5 {[%clk 0:02:43.2]} 9. O-O {[%clk 0:02:55.5]} 9... Be7 {[%clk 0:02:24.4]} 10.
f4 {[%clk 0:02:53.1]} 10... exf4 {[%clk 0:02:22.1]} 11. Nexf4 {[%clk 0:02:46.7]}
11... Ne5 {[%clk 0:02:16.1]} 12. Nd5 {[%clk 0:02:41.5]} 12... Bg4 {[%clk
0:02:11.2]} 13. Qe1 {[%clk 0:02:40.1]} 13... Qd7 {[%clk 0:02:06.2]} 14. Nf2
{[%clk 0:02:20.1]} 14... Nf3+ {[%clk 0:01:52]} 15. Bxf3 {[%clk 0:02:19.1]} 15...
Bxf3 {[%clk 0:01:52.9]} 16. Bf4 {[%clk 0:02:13.8]} 16... Rc8 {[%clk 0:01:14.5]}
17. h3 {[%clk 0:02:11.4]} 17... Rh5 {[%clk 0:01:07]} 18. Qd2 {[%clk 0:02:09]}
18... f6 {[%clk 0:00:53.4]} 19. gxf6 {[%clk 0:01:55]} 19... Nxf6 {[%clk
0:00:52.1]} 20. Nxf6+ {[%clk 0:01:52.7]} 20... Bxf6 {[%clk 0:00:43]} 21. Rae1
{[%clk 0:01:08.5]} 21... g5 {[%clk 0:00:37.2]} 22. Bh2 {[%clk 0:01:08.2]} 22...
Qe6 {[%clk 0:00:17.3]} 23. e5 {[%clk 0:01:01]} 23... Be7 {[%clk 0:00:15.2]} 24.
c3 {[%clk 0:00:33.7]} 24... g4 {[%clk 0:00:10.8]} 25. hxg4 {[%clk 0:00:29.5]}
25... Rg5 {[%clk 0:00:11.1]} 26. Re4 {[%clk 0:00:19.7]} 26... Bxe4 {[%clk
0:00:10.6]} 27. dxe4 {[%clk 0:00:18.1]} 27... dxc3 {[%clk 0:00:10.5]} 28. bxc3
{[%clk 0:00:14.9]} 28... Rd8 {[%clk 0:00:10.1]} 29. Qe2 {[%clk 0:00:13.5]} 29...
Kd7 {[%clk 0:00:09.4]} 30. Bf4 {[%clk 0:00:10.1]} 30... Rg7 {[%clk 0:00:08.3]}
31. Kh2 {[%clk 0:00:09.2]} 31... Rdg8 {[%clk 0:00:08.1]} 32. Kh3 {[%clk
0:00:08.1]} 32... Kc8 {[%clk 0:00:07]} 33. Rg1 {[%clk 0:00:06.9]} 33... Bd8
{[%clk 0:00:07]} 34. Qb5 {[%clk 0:00:04.9]} 34... Qb6 {[%clk 0:00:05.1]} 35. Qc4
{[%clk 0:00:04.5]} 35... Qc7 {[%clk 0:00:04.9]} 36. a4 {[%clk 0:00:03.3]} 36...
Rf8 {[%clk 0:00:04.6]} 37. Nd3 {[%clk 0:00:01.3]} 37... Rgf7 {[%clk 0:00:04.2]}
0-1

[Event "*** Titled Tuesday Blitz"]
[Site "Chess.com"]
[Date "2020.11.10"]
[Round "11"]
[White "SanchezKelvin"]
[Black "Fortitudine"]
[Result "1/2-1/2"]
[WhiteElo "2450"]
[BlackElo "2315"]
[TimeControl "180+1"]
[EndTime "12:13:05 PST"]
[Termination "Game drawn by repetition"]

1. d4 {[%clk 0:03:00.9]} 1... Nf6 {[%clk 0:02:56.4]} 2. c4 {[%clk 0:03:00.7]}
2... c5 {[%clk 0:02:56]} 3. d5 {[%clk 0:03:00.8]} 3... b5 {[%clk 0:02:55.8]} 4.
cxb5 {[%clk 0:03:01.7]} 4... a6 {[%clk 0:02:55.5]} 5. bxa6 {[%clk 0:03:01]} 5...
g6 {[%clk 0:02:55.5]} 6. Nc3 {[%clk 0:03:00.3]} 6... Bg7 {[%clk 0:02:55.7]} 7.
e4 {[%clk 0:03:00.3]} 7... O-O {[%clk 0:02:56.3]} 8. e5 {[%clk 0:03:00.2]} 8...
Ne8 {[%clk 0:02:56.7]} 9. Nf3 {[%clk 0:03:00.2]} 9... d6 {[%clk 0:02:57]} 10. e6
{[%clk 0:02:59.9]} 10... Nc7 {[%clk 0:02:54]} 11. exf7+ {[%clk 0:02:55.3]} 11...
Rxf7 {[%clk 0:02:54.3]} 12. Be2 {[%clk 0:02:53]} 12... Bxa6 {[%clk 0:02:52.9]}
13. O-O {[%clk 0:02:53]} 13... Qc8 {[%clk 0:02:45]} 14. Re1 {[%clk 0:02:51.8]}
14... Bxe2 {[%clk 0:02:38.3]} 15. Rxe2 {[%clk 0:02:51.5]} 15... h6 {[%clk
0:02:24.5]} 16. Qc2 {[%clk 0:02:41.2]} 16... Qf5 {[%clk 0:02:23.5]} 17. Qxf5
{[%clk 0:02:36.6]} 17... gxf5 {[%clk 0:02:24.4]} 18. Bd2 {[%clk 0:02:21.2]}
18... Nd7 {[%clk 0:02:22.2]} 19. Rae1 {[%clk 0:02:19.6]} 19... Bf8 {[%clk
0:02:02]} 20. a3 {[%clk 0:02:04.5]} 20... Nb6 {[%clk 0:01:52]} 21. Bc1 {[%clk
0:01:58.9]} 21... Nbxd5 {[%clk 0:01:48.6]} 22. Nxd5 {[%clk 0:01:58.5]} 22...
Nxd5 {[%clk 0:01:49.5]} 23. Re6 {[%clk 0:01:58.4]} 23... Nc7 {[%clk 0:01:41.4]}
24. Rg6+ {[%clk 0:01:41.6]} 24... Kh7 {[%clk 0:01:41.6]} 25. Rg3 {[%clk
0:01:40.4]} 25... e5 {[%clk 0:01:37.6]} 26. Rh3 {[%clk 0:01:39.9]} 26... Ne6
{[%clk 0:01:31.5]} 27. Nd2 {[%clk 0:01:35.9]} 27... Nf4 {[%clk 0:01:25.8]} 28.
Rb3 {[%clk 0:01:29.5]} 28... Be7 {[%clk 0:01:14.4]} 29. Nc4 {[%clk 0:01:23.8]}
29... Ne6 {[%clk 0:00:51.1]} 30. Rb7 {[%clk 0:01:16.3]} 30... Ra6 {[%clk
0:00:42.6]} 31. Rd1 {[%clk 0:01:10.5]} 31... Nd4 {[%clk 0:00:42.6]} 32. b4
{[%clk 0:01:06]} 32... cxb4 {[%clk 0:00:38.8]} 33. axb4 {[%clk 0:01:05.4]} 33...
Rc6 {[%clk 0:00:37.5]} 34. Ne3 {[%clk 0:00:44.7]} 34... Rxc1 {[%clk 0:00:32.8]}
35. Rxc1 {[%clk 0:00:44.5]} 35... Ne2+ {[%clk 0:00:33.4]} 36. Kf1 {[%clk
0:00:45]} 36... Nxc1 {[%clk 0:00:34.3]} 37. Nd5 {[%clk 0:00:45]} 37... Nd3
{[%clk 0:00:28.6]} 38. b5 {[%clk 0:00:44]} 38... Nc5 {[%clk 0:00:23]} 39. Rxe7
{[%clk 0:00:39.2]} 39... Rxe7 {[%clk 0:00:23.2]} 40. Nxe7 {[%clk 0:00:40.1]}
40... f4 {[%clk 0:00:20.5]} 41. Nf5 {[%clk 0:00:39.5]} 41... Nb7 {[%clk
0:00:19.6]} 42. f3 {[%clk 0:00:31.2]} 42... Kg6 {[%clk 0:00:19.8]} 43. Ne7+
{[%clk 0:00:31.1]} 43... Kf7 {[%clk 0:00:19.9]} 44. Nd5 {[%clk 0:00:31.3]} 44...
Ke6 {[%clk 0:00:19.6]} 45. Nc7+ {[%clk 0:00:31.5]} 45... Kd7 {[%clk 0:00:20]}
46. Nd5 {[%clk 0:00:31.5]} 46... Ke6 {[%clk 0:00:20.5]} 47. Nc7+ {[%clk
0:00:19.5]} 47... Kd7 {[%clk 0:00:20.7]} 48. Nd5 {[%clk 0:00:15.2]} 48... Ke6
{[%clk 0:00:20.7]} 1/2-1/2

[Event "*** Titled Tuesday Blitz"]
[Site "Chess.com"]
[Date "2020.11.10"]
[Round "11"]
[White "Igor_Lysyj"]
[Black "Ermito2020"]
[Result "1/2-1/2"]
[WhiteElo "2810"]
[BlackElo "2616"]
[TimeControl "180+1"]
[EndTime "12:13:06 PST"]
[Termination "Game drawn - insufficient material"]

1. d4 {[%clk 0:03:00.9]} 1... e6 {[%clk 0:02:59.4]} 2. c4 {[%clk 0:02:59.8]}
2... f5 {[%clk 0:02:59.9]} 3. Nf3 {[%clk 0:02:56.8]} 3... Nf6 {[%clk 0:03:00.4]}
4. g3 {[%clk 0:02:55]} 4... Be7 {[%clk 0:03:00.9]} 5. Bg2 {[%clk 0:02:55.3]}
5... O-O {[%clk 0:03:01.4]} 6. O-O {[%clk 0:02:55.3]} 6... d5 {[%clk 0:03:02]}
7. Bf4 {[%clk 0:02:52.1]} 7... c6 {[%clk 0:02:58.9]} 8. Qc2 {[%clk 0:02:51.4]}
8... Ne4 {[%clk 0:02:58.2]} 9. Nc3 {[%clk 0:02:49.6]} 9... Nd7 {[%clk
0:02:57.3]} 10. Rad1 {[%clk 0:02:47.8]} 10... Qe8 {[%clk 0:02:48.9]} 11. Nxe4
{[%clk 0:02:46.8]} 11... fxe4 {[%clk 0:02:48.9]} 12. Ne5 {[%clk 0:02:46.6]}
12... Nf6 {[%clk 0:02:43.9]} 13. f3 {[%clk 0:02:44.2]} 13... exf3 {[%clk
0:02:43.8]} 14. exf3 {[%clk 0:02:43.3]} 14... Nh5 {[%clk 0:02:42.9]} 15. Bc1
{[%clk 0:02:42.7]} 15... Bd6 {[%clk 0:02:40.8]} 16. Rfe1 {[%clk 0:02:41.3]}
16... Qe7 {[%clk 0:02:37.2]} 17. c5 {[%clk 0:02:38.8]} 17... Bc7 {[%clk
0:02:36.5]} 18. g4 {[%clk 0:02:37.1]} 18... Nf4 {[%clk 0:02:34.6]} 19. Bxf4
{[%clk 0:02:35.8]} 19... Rxf4 {[%clk 0:02:35.5]} 20. Qf2 {[%clk 0:02:31.9]}
20... Bd7 {[%clk 0:02:30.2]} 21. Qe3 {[%clk 0:02:21.8]} 21... Raf8 {[%clk
0:02:18.6]} 22. Nxd7 {[%clk 0:02:21.3]} 22... Qxd7 {[%clk 0:02:19.5]} 23. Qxe6+
{[%clk 0:02:21.4]} 23... Qxe6 {[%clk 0:02:20]} 24. Rxe6 {[%clk 0:02:21.3]} 24...
Bd8 {[%clk 0:02:12.4]} 25. Re3 {[%clk 0:01:54.8]} 25... Bf6 {[%clk 0:02:08.4]}
26. Red3 {[%clk 0:01:54.9]} 26... Re8 {[%clk 0:02:06.2]} 27. Kf1 {[%clk
0:01:54.3]} 27... Kf7 {[%clk 0:02:03.4]} 28. b4 {[%clk 0:01:52.4]} 28... g5
{[%clk 0:01:54.2]} 29. a4 {[%clk 0:01:51.1]} 29... a6 {[%clk 0:01:52.8]} 30. Kf2
{[%clk 0:01:50.6]} 30... Kg6 {[%clk 0:01:50.3]} 31. Bf1 {[%clk 0:01:49.4]} 31...
h5 {[%clk 0:01:48.5]} 32. gxh5+ {[%clk 0:01:46.1]} 32... Kxh5 {[%clk 0:01:48]}
33. Bh3 {[%clk 0:01:46.1]} 33... Kg6 {[%clk 0:01:44.3]} 34. Bg4 {[%clk
0:01:45.9]} 34... Rh8 {[%clk 0:01:43.6]} 35. h3 {[%clk 0:01:44.9]} 35... Re8
{[%clk 0:01:42.1]} 36. Kf1 {[%clk 0:01:41.8]} 36... Rh8 {[%clk 0:01:38.5]} 37.
b5 {[%clk 0:01:34.8]} 37... axb5 {[%clk 0:01:38.1]} 38. axb5 {[%clk 0:01:34.7]}
38... Rh7 {[%clk 0:01:31.2]} 39. Re1 {[%clk 0:01:09.7]} 39... Re7 {[%clk
0:01:24.6]} 40. Rxe7 {[%clk 0:01:08]} 40... Bxe7 {[%clk 0:01:25.5]} 41. Bc8
{[%clk 0:01:07]} 41... cxb5 {[%clk 0:01:21.8]} 42. Bxb7 {[%clk 0:01:05.7]} 42...
Bf6 {[%clk 0:01:22.1]} 43. c6 {[%clk 0:01:00.5]} 43... Bd8 {[%clk 0:01:21.9]}
44. Bc8 {[%clk 0:00:53.6]} 44... Kf6 {[%clk 0:01:16.3]} 45. Re3 {[%clk
0:00:51.2]} 45... Rxd4 {[%clk 0:01:11.7]} 46. Re6+ {[%clk 0:00:50.7]} 46... Kf7
{[%clk 0:01:11.5]} 47. Rd6 {[%clk 0:00:50.8]} 47... Bb6 {[%clk 0:01:02.7]} 48.
c7 {[%clk 0:00:48.7]} 48... Bxc7 {[%clk 0:00:56.9]} 49. Rd7+ {[%clk 0:00:48.8]}
49... Kf6 {[%clk 0:00:56.6]} 50. Rxc7 {[%clk 0:00:48.3]} 50... Rc4 {[%clk
0:00:56.6]} 51. Rxc4 {[%clk 0:00:45.9]} 51... dxc4 {[%clk 0:00:57.5]} 52. Ba6
{[%clk 0:00:42.9]} 52... c3 {[%clk 0:00:56.5]} 53. Ke2 {[%clk 0:00:42.8]} 53...
b4 {[%clk 0:00:55.6]} 54. Kd3 {[%clk 0:00:41.2]} 54... Ke5 {[%clk 0:00:55.3]}
55. Bc8 {[%clk 0:00:36]} 55... Kf4 {[%clk 0:00:55]} 56. Bg4 {[%clk 0:00:35.6]}
56... Kg3 {[%clk 0:00:54.9]} 57. Kc2 {[%clk 0:00:34.5]} 57... Kf4 {[%clk
0:00:54.4]} 58. Kb3 {[%clk 0:00:34.4]} 58... Kg3 {[%clk 0:00:54.2]} 59. Bf5
{[%clk 0:00:31.5]} 59... Kxf3 {[%clk 0:00:50.6]} 60. Kxb4 {[%clk 0:00:31.3]}
60... Kf4 {[%clk 0:00:51.1]} 61. Bc2 {[%clk 0:00:23.1]} 61... Kg3 {[%clk
0:00:49.8]} 62. Kxc3 {[%clk 0:00:22.7]} 62... Kxh3 {[%clk 0:00:49.6]} 63. Bf5+
{[%clk 0:00:22.6]} 63... Kg3 {[%clk 0:00:48.5]} 64. Kd4 {[%clk 0:00:21.7]} 64...
Kf4 {[%clk 0:00:49.4]} 65. Bc8 {[%clk 0:00:21.5]} 65... g4 {[%clk 0:00:49.6]}
66. Bxg4 {[%clk 0:00:21.4]} 1/2-1/2

[Event "*** Titled Tuesday Blitz"]
[Site "Chess.com"]
[Date "2020.11.10"]
[Round "11"]
[White "LiamVrolijk"]
[Black "Vuk2000"]
[Result "1/2-1/2"]
[WhiteElo "2815"]
[BlackElo "2706"]
[TimeControl "180+1"]
[EndTime "12:13:08 PST"]
[Termination "Game drawn - insufficient material"]

1. Nf3 {[%clk 0:02:59.4]} 1... Nf6 {[%clk 0:02:59.8]} 2. c4 {[%clk 0:02:59]}
2... e6 {[%clk 0:03:00]} 3. d4 {[%clk 0:02:57.7]} 3... b6 {[%clk 0:02:59.4]} 4.
g3 {[%clk 0:02:57.9]} 4... Ba6 {[%clk 0:02:59.7]} 5. b3 {[%clk 0:02:58]} 5...
Bb4+ {[%clk 0:02:58.6]} 6. Bd2 {[%clk 0:02:58.4]} 6... Be7 {[%clk 0:02:59]} 7.
Nc3 {[%clk 0:02:59.3]} 7... d5 {[%clk 0:02:57.6]} 8. cxd5 {[%clk 0:02:59.4]}
8... exd5 {[%clk 0:02:58.5]} 9. Bg2 {[%clk 0:02:59.9]} 9... O-O {[%clk 0:02:58]}
10. O-O {[%clk 0:03:00.6]} 10... Re8 {[%clk 0:02:56.9]} 11. Bf4 {[%clk
0:03:00.5]} 11... Bb7 {[%clk 0:02:39.5]} 12. a3 {[%clk 0:02:56.2]} 12... Na6
{[%clk 0:02:35.5]} 13. b4 {[%clk 0:02:55.6]} 13... c6 {[%clk 0:02:32]} 14. Rc1
{[%clk 0:02:51.3]} 14... Nc7 {[%clk 0:02:31.9]} 15. Qb3 {[%clk 0:02:45.3]} 15...
Ne6 {[%clk 0:02:27.2]} 16. Be5 {[%clk 0:02:39]} 16... a5 {[%clk 0:01:43.1]} 17.
Rfd1 {[%clk 0:02:33.1]} 17... axb4 {[%clk 0:01:40.4]} 18. axb4 {[%clk 0:02:34]}
18... b5 {[%clk 0:01:35]} 19. Bxf6 {[%clk 0:02:27.3]} 19... Bxf6 {[%clk
0:01:34.7]} 20. e4 {[%clk 0:02:28.2]} 20... Qb6 {[%clk 0:01:01.2]} 21. exd5
{[%clk 0:02:01.2]} 21... cxd5 {[%clk 0:00:40.9]} 22. Nxd5 {[%clk 0:01:47.9]}
22... Bxd5 {[%clk 0:00:39.4]} 23. Qxd5 {[%clk 0:01:48.8]} 23... Rad8 {[%clk
0:00:38.4]} 24. Qc6 {[%clk 0:01:26.6]} 24... Qxc6 {[%clk 0:00:29.3]} 25. Rxc6
{[%clk 0:01:27.5]} 25... Nxd4 {[%clk 0:00:27.2]} 26. Nxd4 {[%clk 0:01:28]} 26...
Rxd4 {[%clk 0:00:23.5]} 27. Rxd4 {[%clk 0:01:26.9]} 27... Bxd4 {[%clk
0:00:24.4]} 28. Bf1 {[%clk 0:01:27.5]} 28... g6 {[%clk 0:00:19]} 29. Bxb5 {[%clk
0:01:22.3]} 29... Rb8 {[%clk 0:00:18.1]} 30. Bc4 {[%clk 0:01:13.6]} 30... Rxb4
{[%clk 0:00:12.3]} 31. Rc7 {[%clk 0:01:02]} 31... Bb6 {[%clk 0:00:12]} 32. Bxf7+
{[%clk 0:00:57.9]} 32... Kf8 {[%clk 0:00:11.5]} 33. Rd7 {[%clk 0:00:52.5]} 33...
Rb2 {[%clk 0:00:11]} 34. Bc4 {[%clk 0:00:51.3]} 34... Rxf2 {[%clk 0:00:10.5]}
35. Kh1 {[%clk 0:00:46.8]} 35... Rc2 {[%clk 0:00:06.4]} 36. Bb3 {[%clk
0:00:44.7]} 36... Rc7 {[%clk 0:00:06.2]} 37. Rd6 {[%clk 0:00:44]} 37... Bc5
{[%clk 0:00:06.5]} 38. Rd2 {[%clk 0:00:44.1]} 38... Kg7 {[%clk 0:00:07]} 39. Kg2
{[%clk 0:00:44.3]} 39... Bb6 {[%clk 0:00:07.7]} 40. Bd5 {[%clk 0:00:44.4]} 40...
Re7 {[%clk 0:00:07.7]} 41. Bf3 {[%clk 0:00:44.1]} 41... Rf7 {[%clk 0:00:08.1]}
42. h4 {[%clk 0:00:44.6]} 42... Be3 {[%clk 0:00:07.3]} 43. Rd3 {[%clk 0:00:45]}
43... Bb6 {[%clk 0:00:07.8]} 44. Rd5 {[%clk 0:00:45.7]} 44... Rc7 {[%clk
0:00:08.2]} 45. h5 {[%clk 0:00:45.4]} 45... gxh5 {[%clk 0:00:07]} 46. Rxh5
{[%clk 0:00:46.3]} 46... Rc5 {[%clk 0:00:07.4]} 47. Rh4 {[%clk 0:00:44.9]} 47...
Rg5 {[%clk 0:00:07.2]} 48. Be4 {[%clk 0:00:44.9]} 48... h6 {[%clk 0:00:05.5]}
49. Rf4 {[%clk 0:00:45]} 49... Bc7 {[%clk 0:00:05.1]} 50. Rf3 {[%clk 0:00:45.7]}
50... Rxg3+ {[%clk 0:00:05.1]} 51. Rxg3+ {[%clk 0:00:46.6]} 51... Bxg3 {[%clk
0:00:06]} 52. Kxg3 {[%clk 0:00:47.2]} 52... h5 {[%clk 0:00:06.9]} 53. Kh4 {[%clk
0:00:48]} 53... Kh6 {[%clk 0:00:07.5]} 54. Bh7 {[%clk 0:00:48.4]} 54... Kg7
{[%clk 0:00:08.4]} 55. Kxh5 {[%clk 0:00:49.1]} 1/2-1/2